bitfinex-derivatives/quotes_BTCF0:USTF0_20230105
["timestamp","ask_amount","ask_price","bid_price","bid_amount"]
[1672887090660,0.088,16850.0,16849.0,1.17838455]
[1672887091603,0.088,16850.0,16849.0,0.87768455]
[1672887091816,0.088,16850.0,16849.0,1.17838455]
[1672887093820,0.088,16850.0,16849.0,1.17830459]
[1672887094970,0.3507,16853.0,16849.0,1.16630459]
[1672887095172,0.081,16850.0,16849.0,1.04476874]
[1672887095803,0.081,16850.0,16849.0,1.17830459]
[1672887098022,0.081,16850.0,16849.0,0.87760459]
[1672887098232,0.081,16850.0,16849.0,0.95589435]
[1672887100962,0.081,16850.0,16849.0,0.65519435]
[1672887101176,0.081,16850.0,16849.0,0.95589435]
[1672887106536,0.081,16850.0,16849.0,1.04476874]
[1672887106746,0.081,16850.0,16849.0,0.95589435]
[1672887107063,0.081,16850.0,16849.0,0.06149435]
[1672887109487,0.081,16850.0,16849.0,0.95589435]
[1672887115892,0.081,16850.0,16849.0,0.65519435]
[1672887122089,0.081,16850.0,16849.0,0.06149435]
[1672887122305,0.081,16850.0,16849.0,0.65519435]
[1672887128940,0.081,16850.0,16849.0,0.06149435]
[1672887136703,0.3817,16850.0,16849.0,0.06149435]
[1672887143117,0.3817,16850.0,16849.0,0.06139594]
[1672887145858,0.081,16850.0,16849.0,0.06139594]
[1672887146067,0.3817,16850.0,16849.0,0.06139594]
[1672887147646,0.081,16850.0,16849.0,0.06139594]
[1672887147852,0.3817,16850.0,16849.0,0.06139594]
[1672887150381,0.081,16850.0,16849.0,0.06139594]
[1672887150904,0.3817,16850.0,16849.0,0.06139594]
[1672887154055,0.081,16850.0,16849.0,0.06139594]
[1672887182963,0.3817,16850.0,16849.0,0.06139594]
[1672887185597,0.081,16850.0,16849.0,0.06139594]
[1672887188436,0.3817,16850.0,16849.0,0.06139594]
[1672887193262,0.3817,16850.0,16849.0,0.06119312]
[1672887202399,0.38158389,16850.0,16849.0,0.06119312]
[1672887217653,0.08088389,16850.0,16849.0,0.06119312]
[1672887218178,0.38158389,16850.0,16849.0,0.06119312]
[1672887218492,0.43158389,16850.0,16849.0,0.06119312]
[1672887222277,0.13088389,16850.0,16849.0,0.06119312]
[1672887222808,0.43158389,16850.0,16849.0,0.06119312]
[1672887223428,0.43158389,16850.0,16849.0,0.012]
[1672887234996,0.13088389,16850.0,16849.0,0.012]
[1672887235197,0.43158389,16850.0,16849.0,0.012]
[1672887235940,0.13088389,16850.0,16849.0,0.012]
[1672887236153,0.73228389,16850.0,16849.0,0.012]
[1672887237824,0.43158389,16850.0,16849.0,0.012]
[1672887238671,0.13088389,16850.0,16849.0,0.012]
[1672887239095,0.43158389,16850.0,16849.0,0.012]
[1672887249707,0.13088389,16850.0,16849.0,0.012]
[1672887249919,0.73228389,16850.0,16849.0,0.012]
[1672887255486,0.73228389,16850.0,16849.0,0.01192496]
[1672887261790,0.43158389,16850.0,16849.0,0.01192496]
[1672887264840,0.13088389,16850.0,16849.0,0.01192496]
[1672887265047,0.43158389,16850.0,16849.0,0.01192496]
[1672887265673,0.13088389,16850.0,16849.0,0.01192496]
[1672887265884,0.43158389,16850.0,16849.0,0.01192496]
[1672887268735,0.13088389,16850.0,16849.0,0.01192496]
[1672887269043,0.43158389,16850.0,16849.0,0.01192496]
[1672887269465,0.13088389,16850.0,16849.0,0.01192496]
[1672887270096,0.43158389,16850.0,16849.0,0.01192496]
[1672887270509,0.13088389,16850.0,16849.0,0.01192496]
[1672887270720,0.43158389,16850.0,16849.0,0.01192496]
[1672887275237,0.73228389,16850.0,16849.0,0.01192496]
[1672887300679,0.73228389,16850.0,16849.0,0.01171359]
[1672887307193,0.05,16849.0,16846.0,0.7833]
[1672887307412,0.3007,16847.0,16844.0,0.98957439]
[1672887307624,0.3007,16847.0,16845.0,0.05]
[1672887308047,0.3507,16847.0,16845.0,0.05]
[1672887308772,0.3647,16847.0,16845.0,0.05]
[1672887309934,0.3657,16847.0,16845.0,0.058]
[1672887310147,0.05,16846.0,16845.0,0.058]
[1672887311289,0.05,16846.0,16845.0,0.05]
[1672887311498,0.065,16846.0,16845.0,0.058]
[1672887314973,0.3657,16846.0,16845.0,0.058]
[1672887332526,0.3507,16846.0,16845.0,0.05]
[1672887332733,0.3637,16846.0,16845.0,0.057]
[1672887334738,0.013,16846.0,16845.0,0.057]
[1672887345153,0.013,16846.0,16845.0,0.14587439]
[1672887353353,0.013,16846.0,16845.0,0.057]
[1672887355031,0.013,16846.0,16845.0,0.3577]
[1672887357879,0.013,16846.0,16845.0,0.44657439]
[1672887358072,0.013,16846.0,16845.0,1.04027439]
[1672887358284,0.013,16846.0,16845.0,1.17381024]
[1672887359967,0.013,16846.0,16845.0,1.0401654]
[1672887360391,0.013,16846.0,16845.0,1.17370125]
[1672887360817,0.013,16846.0,16845.0,1.08482686]
[1672887365013,0.013,16846.0,16845.0,1.38552686]
[1672887365857,0.013,16846.0,16845.0,0.78412686]
[1672887366076,0.013,16846.0,16845.0,1.38552686]
[1672887367009,0.013,16846.0,16845.0,1.47441665]
[1672887367225,0.013,16846.0,16845.0,1.38552686]
[1672887367955,0.013,16846.0,16845.0,1.47441282]
[1672887368165,0.013,16846.0,16845.0,1.47441303]
[1672887368492,0.013,16846.0,16845.0,1.34087718]
[1672887372170,0.013,16846.0,16845.0,1.25199101]
[1672887374362,0.013,16846.0,16845.0,0.95129101]
[1672887375939,0.013,16846.0,16845.0,1.04017718]
[1672887378893,0.013,16846.0,16845.0,0.73947718]
[1672887381420,0.013,16846.0,16845.0,0.65059101]
[1672887381946,0.013,16846.0,16845.0,0.73947718]
[1672887394561,0.013,16846.0,16845.0,0.65059101]
[1672887404849,0.013,16846.0,16845.0,0.65044025]
[1672887413485,0.013,16846.0,16845.0,0.73932642]
[1672887418743,0.013,16846.0,16845.0,0.65044025]
[1672887419267,0.063,16846.0,16845.0,0.73932642]
[1672887419475,0.063,16846.0,16845.0,0.65044025]
[1672887419688,0.063,16846.0,16845.0,0.05674025]
[1672887420307,0.063,16846.0,16845.0,0.007]
[1672887427780,0.06285515,16846.0,16845.0,0.007]
[1672887431877,0.36355515,16846.0,16845.0,0.007]
[1672887437881,0.06285515,16846.0,16845.0,0.007]
[1672887438195,0.36355515,16846.0,16845.0,0.007]
[1672887447123,0.31355515,16846.0,16845.0,0.007]
[1672887451117,0.01285515,16846.0,16845.0,0.007]
[1672887451327,0.31355515,16846.0,16845.0,0.007]
[1672887476467,0.01285515,16846.0,16845.0,0.007]
[1672887482341,0.01285515,16846.0,16845.0,0.00683095]
[1672887492122,0.31355515,16846.0,16845.0,0.00683095]
[1672887492330,0.36355515,16846.0,16845.0,0.00683095]
[1672887525989,0.06285515,16846.0,16845.0,0.00683095]
[1672887526297,0.36355515,16846.0,16845.0,0.00683095]
[1672887527450,0.36355515,16846.0,16845.0,0.00669906]
[1672887534715,0.06285515,16846.0,16845.0,0.00669906]
[1672887535029,0.36355515,16846.0,16845.0,0.00669906]
[1672887536915,0.06285515,16846.0,16845.0,0.00669906]
[1672887537126,0.36355515,16846.0,16845.0,0.00669906]
[1672887544288,0.3587,16846.0,16845.0,0.006]
[1672887544493,0.3507,16846.0,16844.0,0.05]
[1672887544811,0.4737,16846.0,16845.0,0.001]
[1672887545437,0.4737,16846.0,16844.0,0.05]
[1672887545649,0.4187,16846.0,16844.0,0.051]
[1672887546914,0.4737,16846.0,16845.0,0.001]
[1672887547338,0.3507,16846.0,16843.0,0.05]
[1672887547549,0.3007,16844.0,16843.0,0.05]
[1672887549748,0.3137,16844.0,16843.0,0.056]
[1672887549958,0.3137,16844.0,16843.0,0.656]
[1672887555955,0.013,16844.0,16843.0,0.656]
[1672887557633,0.3137,16844.0,16843.0,0.656]
[1672887558790,0.013,16844.0,16843.0,0.74488617]
[1672887561834,0.013,16844.0,16843.0,0.656]
[1672887562361,0.013,16844.0,16843.0,0.74488617]
[1672887565417,0.0128797,16844.0,16843.0,0.74488617]
[1672887565942,0.0128797,16844.0,16843.0,1.04558617]
[1672887569190,0.0128797,16844.0,16843.0,0.74488617]
[1672887571194,0.0128797,16844.0,16843.0,0.656]
[1672887584023,0.0128797,16844.0,16843.0,0.74488617]
[1672887586014,0.0128797,16844.0,16843.0,0.656]
[1672887588123,0.0128797,16844.0,16843.0,0.74488617]
[1672887597163,0.0128797,16844.0,16843.0,0.87842202]
[1672887598732,0.0128797,16844.0,16843.0,0.74488617]
[1672887599884,0.0128797,16844.0,16843.0,0.87842202]
[1672887600205,0.0128797,16844.0,16843.0,0.74488617]
[1672887604931,0.0128797,16844.0,16843.0,0.656]
[1672887605986,0.0628797,16844.0,16843.0,0.656]
[1672887609650,0.3635797,16844.0,16843.0,0.65580301]
[1672887609863,0.3135797,16844.0,16843.0,0.65580301]
[1672887613545,0.3135797,16844.0,16843.0,0.05580301]
[1672887616481,0.0128797,16844.0,16843.0,0.05580301]
[1672887616697,0.3135797,16844.0,16843.0,0.05580301]
[1672887617537,0.3135797,16844.0,16843.0,0.65580301]
[1672887621011,0.0128797,16844.0,16843.0,0.65580301]
[1672887633110,0.3135797,16844.0,16843.0,0.65580301]
[1672887645095,0.0128797,16844.0,16843.0,0.65580301]
[1672887645607,0.0128797,16844.0,16843.0,0.74468918]
[1672887646136,0.0128797,16844.0,16843.0,0.65580301]
[1672887652242,0.3135797,16844.0,16843.0,0.65580301]
[1672887652440,0.3135797,16844.0,16843.0,0.05580301]
[1672887654749,0.3135797,16844.0,16843.0,0.65580301]
[1672887655494,0.3135797,16844.0,16843.0,0.65566707]
[1672887656861,0.0128797,16844.0,16843.0,0.65566707]
[1672887657074,0.3135797,16844.0,16843.0,0.65566707]
[1672887661697,0.0128797,16844.0,16843.0,0.65566707]
[1672887661907,0.3135797,16844.0,16843.0,0.65566707]
[1672887664645,0.0128797,16844.0,16843.0,0.65566707]
[1672887664842,0.3135797,16844.0,16843.0,0.65566707]
[1672887668622,0.3135797,16844.0,16843.0,0.74455324]
[1672887672420,0.0128797,16844.0,16843.0,0.87808909]
[1672887673160,0.0128797,16844.0,16843.0,0.74455324]
[1672887673793,0.0128797,16844.0,16843.0,0.87808909]
[1672887674002,0.0128797,16844.0,16843.0,0.74455324]
[1672887674626,0.0128797,16844.0,16843.0,0.87808909]
[1672887675683,0.0128797,16844.0,16843.0,1.17878909]
[1672887675999,0.0128797,16844.0,16843.0,1.04525324]
[1672887676932,0.0128797,16844.0,16843.0,0.74455324]
[1672887677146,0.0128797,16844.0,16843.0,0.65566707]
[1672887677353,0.0128797,16844.0,16843.0,1.04525324]
[1672887677994,0.0128797,16844.0,16843.0,0.95636707]
[1672887683561,0.0128797,16844.0,16843.0,0.74455324]
[1672887683766,0.3135797,16844.0,16843.0,0.65566707]
[1672887697759,0.0128797,16844.0,16843.0,0.65566707]
[1672887698712,0.0128797,16844.0,16843.0,0.74455324]
[1672887701441,0.0128797,16844.0,16843.0,0.74436641]
[1672887701856,0.0128797,16844.0,16843.0,0.87790226]
[1672887702493,0.0128797,16844.0,16843.0,0.74436641]
[1672887707115,0.0128797,16844.0,16843.0,0.65548024]
[1672887710690,0.0128797,16844.0,16843.0,0.74436641]
[1672887711844,0.0128797,16844.0,16843.0,0.65548024]
[1672887712056,0.0128797,16844.0,16843.0,0.74436641]
[1672887712586,0.0128797,16844.0,16843.0,0.65548024]
[1672887713635,0.0128797,16844.0,16843.0,0.74436641]
[1672887728670,0.0128797,16844.0,16843.0,0.65548024]
[1672887730361,0.0628797,16844.0,16843.0,0.65548024]
[1672887731201,0.0128797,16844.0,16843.0,0.65548024]
[1672887733300,0.0628797,16844.0,16843.0,0.65548024]
[1672887735084,0.3635797,16844.0,16843.0,0.65548024]
[1672887736243,0.3135797,16844.0,16843.0,0.74436641]
[1672887739508,0.0128797,16844.0,16843.0,0.74436641]
[1672887739721,0.3135797,16844.0,16843.0,0.74436641]
[1672887743711,0.3135797,16844.0,16843.0,0.65548024]
[1672887743926,0.3135797,16844.0,16843.0,0.74436641]
[1672887747622,0.3135797,16844.0,16843.0,0.74423215]
[1672887750337,0.0128797,16844.0,16843.0,0.74423215]
[1672887750865,0.3135797,16844.0,16843.0,0.74423215]
[1672887751394,0.3135797,16844.0,16843.0,0.877768]
[1672887754545,0.3135797,16844.0,16843.0,0.74423215]
[1672887757798,0.0128797,16844.0,16843.0,0.74423215]
[1672887758010,0.3135797,16844.0,16843.0,0.74423215]
[1672887759380,0.3135797,16844.0,16843.0,0.877768]
[1672887764624,0.0128797,16844.0,16843.0,0.877768]
[1672887764832,0.3135797,16844.0,16843.0,0.74423215]
[1672887766212,0.3135797,16844.0,16843.0,0.65534598]
[1672887769786,0.3135797,16844.0,16843.0,0.74423215]
[1672887771889,0.0128797,16844.0,16843.0,0.74423215]
[1672887772099,0.3135797,16844.0,16843.0,0.74423215]
[1672887773673,0.3135797,16844.0,16843.0,0.877768]
[1672887775035,0.0128797,16844.0,16843.0,0.877768]
[1672887776836,0.0128797,16844.0,16843.0,0.74423215]
[1672887778091,0.3135797,16844.0,16843.0,0.74423215]
[1672887779351,0.3135797,16844.0,16843.0,0.65534598]
[1672887779770,0.3135797,16844.0,16843.0,0.74423215]
[1672887781140,0.3135797,16844.0,16843.0,0.65534598]
[1672887785040,0.0128797,16844.0,16843.0,0.65534598]
[1672887785238,0.3135797,16844.0,16843.0,0.65534598]
[1672887785768,0.0128797,16844.0,16843.0,0.65534598]
[1672887785975,0.3135797,16844.0,16843.0,0.65534598]
[1672887786187,0.0128797,16844.0,16843.0,0.65534598]
[1672887786395,0.3135797,16844.0,16843.0,0.65534598]
[1672887786813,0.0128797,16844.0,16843.0,0.65534598]
[1672887787030,0.3135797,16844.0,16843.0,0.65534598]
[1672887787980,0.3135797,16844.0,16843.0,0.74423215]
[1672887788296,0.3135797,16844.0,16843.0,0.65534598]
[1672887788719,0.3135797,16844.0,16843.0,0.74423215]
[1672887792919,0.0128797,16844.0,16843.0,0.74423215]
[1672887793134,0.3135797,16844.0,16843.0,0.74423215]
[1672887793340,0.3135797,16844.0,16843.0,0.877768]
[1672887793756,0.3135797,16844.0,16843.0,0.74423215]
[1672887794181,0.3135797,16844.0,16843.0,0.877768]
[1672887796289,0.3135797,16844.0,16843.0,0.74423215]
[1672887796699,0.0128797,16844.0,16843.0,0.74423215]
[1672887799964,0.0128797,16844.0,16843.0,0.65534598]
[1672887801745,0.0128797,16844.0,16843.0,0.6552851]
[1672887802382,0.0128797,16844.0,16843.0,0.74417127]
[1672887802914,0.0128797,16844.0,16843.0,0.6552851]
[1672887803643,0.0128797,16844.0,16843.0,0.74417127]
[1672887807218,0.0128797,16844.0,16843.0,0.6552851]
[1672887807428,0.0128797,16844.0,16843.0,0.74417127]
[1672887808162,0.0128797,16844.0,16843.0,0.006]
[1672887822139,0.3135797,16844.0,16843.0,0.006]
[1672887823510,0.0128797,16844.0,16843.0,0.006]
[1672887824140,0.3135797,16844.0,16843.0,0.006]
[1672887833809,0.0128797,16844.0,16843.0,0.006]
[1672887834009,0.3135797,16844.0,16843.0,0.006]
[1672887844419,0.3635797,16844.0,16843.0,0.006]
[1672887847039,0.0628797,16844.0,16843.0,0.006]
[1672887847250,0.3635797,16844.0,16843.0,0.00580513]
[1672887847684,0.3635797,16844.0,16843.0,0.0946913]
[1672887848837,0.3635797,16844.0,16843.0,0.00580513]
[1672887852415,0.0128797,16844.0,16843.0,0.00580513]
[1672887856304,0.0128797,16844.0,16843.0,0.0946913]
[1672887856725,0.01279943,16844.0,16843.0,0.0946913]
[1672887863771,0.01279943,16844.0,16843.0,0.00580513]
[1672887872496,0.31349943,16844.0,16843.0,0.00580513]
[1672887877435,0.01279943,16844.0,16843.0,0.00580513]
[1672887877651,0.36349943,16844.0,16843.0,0.00580513]
[1672887878281,0.06279943,16844.0,16843.0,0.00580513]
[1672887878491,0.36349943,16844.0,16843.0,0.00580513]
[1672887889739,0.06279943,16844.0,16843.0,0.00580513]
[1672887889958,0.36349943,16844.0,16843.0,0.00580513]
[1672887892161,0.06279943,16844.0,16843.0,0.00580513]
[1672887892362,0.36349943,16844.0,16843.0,0.00580513]
[1672887901000,0.36349943,16844.0,16843.0,0.00574418]
[1672887916040,0.06279943,16844.0,16843.0,0.00574418]
[1672887916258,0.36349943,16844.0,16843.0,0.00574418]
[1672887922017,0.06279943,16844.0,16843.0,0.00574418]
[1672887922442,0.36349943,16844.0,16843.0,0.00574418]
[1672887923612,0.06279943,16844.0,16843.0,0.00574418]
[1672887923814,0.36349943,16844.0,16843.0,0.00574418]
[1672887936219,0.64546128,16844.0,16843.0,0.00574418]
[1672887949365,0.04406128,16844.0,16843.0,0.00574418]
[1672887949575,0.64546128,16844.0,16843.0,0.00574418]
[1672887953883,0.04406128,16844.0,16843.0,0.00574418]
[1672887954198,0.64546128,16844.0,16843.0,0.00574418]
[1672887961453,0.04406128,16844.0,16843.0,0.00574418]
[1672887961662,0.64546128,16844.0,16843.0,0.00574418]
[1672887967443,0.04406128,16844.0,16843.0,0.00574418]
[1672887967762,0.64546128,16844.0,16843.0,0.00574418]
[1672887968705,0.04406128,16844.0,16843.0,0.00574418]
[1672887968910,0.64546128,16844.0,16843.0,0.00574418]
[1672887973535,0.04406128,16844.0,16843.0,0.00574418]
[1672887973754,0.64546128,16844.0,16843.0,0.00574418]
[1672887980161,0.64546128,16844.0,16843.0,0.0055716]
[1672887981112,0.04406128,16844.0,16843.0,0.0055716]
[1672887981311,0.64546128,16844.0,16843.0,0.0055716]
[1672887994032,0.34476128,16844.0,16843.0,0.0055716]
[1672887994346,0.04406128,16844.0,16843.0,0.0055716]
[1672887994557,0.64546128,16844.0,16843.0,0.0055716]
[1672888000643,0.04406128,16844.0,16843.0,0.0055716]
[1672888000852,0.64546128,16844.0,16843.0,0.0055716]
[1672888003590,0.04406128,16844.0,16843.0,0.0055716]
[1672888003801,0.64546128,16844.0,16843.0,0.0055716]
[1672888008204,0.04406128,16844.0,16843.0,0.0055716]
[1672888008426,0.64546128,16844.0,16843.0,0.0055716]
[1672888009056,0.04406128,16844.0,16843.0,0.0055716]
[1672888009470,0.64546128,16844.0,16843.0,0.0055716]
[1672888016837,0.04406128,16844.0,16843.0,0.0055716]
[1672888017151,0.64546128,16844.0,16843.0,0.0055716]
[1672888026393,0.04406128,16844.0,16843.0,0.0055716]
[1672888026603,0.64546128,16844.0,16843.0,0.0055716]
[1672888027764,0.64546128,16844.0,16843.0,0.00537931]
[1672888033641,0.34476128,16844.0,16843.0,0.00537931]
[1672888033856,0.64546128,16844.0,16843.0,0.00537931]
[1672888034486,0.04406128,16844.0,16843.0,0.00537931]
[1672888034694,0.64546128,16844.0,16843.0,0.00537931]
[1672888034905,0.04406128,16844.0,16843.0,0.00537931]
[1672888035340,0.64546128,16844.0,16843.0,0.00537931]
[1672888043634,0.04406128,16844.0,16843.0,0.00537931]
[1672888043848,0.64546128,16844.0,16843.0,0.00537931]
[1672888046566,0.04406128,16844.0,16843.0,0.00537931]
[1672888046779,0.64546128,16844.0,16843.0,0.00537931]
[1672888054971,0.04406128,16844.0,16843.0,0.00537931]
[1672888055177,0.64546128,16844.0,16843.0,0.00537931]
[1672888055813,0.04406128,16844.0,16843.0,0.00537931]
[1672888056029,0.64546128,16844.0,16843.0,0.00537931]
[1672888056452,0.04406128,16844.0,16843.0,0.00537931]
[1672888056860,0.64546128,16844.0,16843.0,0.00537931]
[1672888058864,0.04406128,16844.0,16843.0,0.00537931]
[1672888059080,0.64546128,16844.0,16843.0,0.00537931]
[1672888070737,0.34476128,16844.0,16843.0,0.00537931]
[1672888070953,0.64546128,16844.0,16843.0,0.00537931]
[1672888079563,0.05,16843.0,16840.0,0.7833]
[1672888079774,0.6014,16841.0,16838.0,0.41038617]
[1672888079981,0.3007,16839.0,16838.0,0.08888617]
[1672888080202,0.3007,16839.0,16838.0,0.13888617]
[1672888080724,0.3007,16839.0,16838.0,0.05]
[1672888082399,0.3147,16839.0,16838.0,0.662]
[1672888082926,0.3147,16839.0,16838.0,0.062]
[1672888093651,0.014,16839.0,16838.0,0.062]
[1672888093959,0.3147,16839.0,16838.0,0.062]
[1672888097742,0.3647,16839.0,16838.0,0.062]
[1672888100688,0.6654,16839.0,16838.0,0.062]
[1672888104260,0.064,16839.0,16838.0,0.062]
[1672888104473,0.6654,16839.0,16838.0,0.062]
[1672888109735,0.6654,16839.0,16838.0,0.012]
[1672888114247,0.3647,16839.0,16838.0,0.012]
[1672888114663,0.064,16839.0,16838.0,0.012]
[1672888114866,0.3647,16839.0,16838.0,0.012]
[1672888118239,0.064,16839.0,16838.0,0.012]
[1672888118448,0.3647,16839.0,16838.0,0.012]
[1672888121606,0.064,16839.0,16838.0,0.012]
[1672888122343,0.3647,16839.0,16838.0,0.012]
[1672888125813,0.064,16839.0,16838.0,0.012]
[1672888126127,0.3647,16839.0,16838.0,0.012]
[1672888126329,0.6654,16839.0,16838.0,0.012]
[1672888128748,0.064,16839.0,16838.0,0.012]
[1672888128961,0.6654,16839.0,16838.0,0.012]
[1672888129586,0.064,16839.0,16838.0,0.012]
[1672888130002,0.3647,16839.0,16838.0,0.012]
[1672888132217,0.3647,16839.0,16838.0,0.01192671]
[1672888151778,0.6654,16839.0,16838.0,0.01192671]
[1672888154510,0.3647,16839.0,16838.0,0.01192671]
[1672888155137,0.064,16839.0,16838.0,0.01192671]
[1672888155783,0.3647,16839.0,16838.0,0.01192671]
[1672888158090,0.6654,16839.0,16838.0,0.01192671]
[1672888168078,0.6514,16839.0,16837.0,0.05]
[1672888168292,0.6654,16839.0,16838.0,0.011]
[1672888169035,0.6664,16839.0,16838.0,0.011]
[1672888177232,0.3657,16839.0,16838.0,0.011]
[1672888178812,0.065,16839.0,16838.0,0.011]
[1672888179022,0.3657,16839.0,16838.0,0.011]
[1672888179867,0.065,16839.0,16838.0,0.011]
[1672888180072,0.3657,16839.0,16838.0,0.011]
[1672888181337,0.065,16839.0,16838.0,0.011]
[1672888181543,0.3657,16839.0,16838.0,0.011]
[1672888181972,0.3657,16839.0,16838.0,0.01088011]
[1672888183124,0.065,16839.0,16838.0,0.01088011]
[1672888183341,0.3657,16839.0,16838.0,0.01088011]
[1672888188703,0.065,16839.0,16838.0,0.01088011]
[1672888188910,0.3657,16839.0,16838.0,0.01088011]
[1672888189534,0.065,16839.0,16838.0,0.01088011]
[1672888189745,0.3657,16839.0,16838.0,0.01088011]
[1672888193113,0.065,16839.0,16838.0,0.01088011]
[1672888193433,0.3657,16839.0,16838.0,0.01088011]
[1672888197744,0.065,16839.0,16838.0,0.01088011]
[1672888198153,0.3657,16839.0,16838.0,0.01088011]
[1672888206673,0.065,16839.0,16838.0,0.01088011]
[1672888206885,0.3657,16839.0,16838.0,0.01088011]
[1672888208253,0.065,16839.0,16838.0,0.01088011]
[1672888208454,0.3657,16839.0,16838.0,0.01088011]
[1672888210029,0.3657,16839.0,16838.0,0.61088011]
[1672888214672,0.3657,16839.0,16838.0,0.01088011]
[1672888223809,0.6664,16839.0,16838.0,0.01088011]
[1672888227904,0.6664,16839.0,16838.0,0.61088011]
[1672888228122,0.015,16839.0,16838.0,0.61088011]
[1672888228336,0.015,16839.0,16838.0,0.69976628]
[1672888228748,0.015,16839.0,16838.0,0.83330213]
[1672888229068,0.015,16839.0,16838.0,0.69976628]
[1672888229488,0.015,16839.0,16838.0,0.61088011]
[1672888229810,0.015,16839.0,16838.0,0.69976628]
[1672888230012,0.015,16839.0,16838.0,0.61088011]
[1672888230428,0.3157,16839.0,16838.0,0.61088011]
[1672888235687,0.3157,16839.0,16838.0,0.61078355]
[1672888252931,0.015,16839.0,16838.0,0.61078355]
[1672888262185,0.015,16839.0,16838.0,0.69966972]
[1672888263859,0.015,16839.0,16838.0,0.61078355]
[1672888265974,0.015,16839.0,16838.0,0.69966972]
[1672888266172,0.3157,16839.0,16838.0,0.69966972]
[1672888268066,0.015,16839.0,16838.0,0.69966972]
[1672888269116,0.3157,16839.0,16838.0,0.69966972]
[1672888271109,0.015,16839.0,16838.0,0.69966972]
[1672888275224,0.3157,16839.0,16838.0,0.69966972]
[1672888279002,0.015,16839.0,16838.0,0.69966972]
[1672888279224,0.3157,16839.0,16838.0,0.69966972]
[1672888280891,0.3157,16839.0,16838.0,0.61078355]
[1672888282057,0.3157,16839.0,16838.0,0.01078355]
[1672888285843,0.31562746,16839.0,16838.0,0.01078355]
[1672888286048,0.61632746,16839.0,16838.0,0.01078355]
[1672888290781,0.31562746,16839.0,16838.0,0.01078355]
[1672888290983,0.36562746,16839.0,16838.0,0.01078355]
[1672888294676,0.06492746,16839.0,16838.0,0.01078355]
[1672888294885,0.36562746,16839.0,16838.0,0.01078355]
[1672888302873,0.06492746,16839.0,16838.0,0.01078355]
[1672888303080,0.36562746,16839.0,16838.0,0.01078355]
[1672888304015,0.06492746,16839.0,16838.0,0.01078355]
[1672888304342,0.36562746,16839.0,16838.0,0.01078355]
[1672888321582,0.66632746,16839.0,16838.0,0.01078355]
[1672888329897,0.06492746,16839.0,16838.0,0.01078355]
[1672888330100,0.66632746,16839.0,16838.0,0.01078355]
[1672888339045,0.06492746,16839.0,16838.0,0.01078355]
[1672888339261,0.66632746,16839.0,16838.0,0.01078355]
[1672888340519,0.66632746,16839.0,16838.0,0.01071256]
[1672888346087,0.06492746,16839.0,16838.0,0.01071256]
[1672888346403,0.66632746,16839.0,16838.0,0.01071256]
[1672888347871,0.06492746,16839.0,16838.0,0.01071256]
[1672888348082,0.66632746,16839.0,16838.0,0.01071256]
[1672888361129,0.06492746,16839.0,16838.0,0.01071256]
[1672888361331,0.66632746,16839.0,16838.0,0.01071256]
[1672888377947,0.06492746,16839.0,16838.0,0.01071256]
[1672888378158,0.66632746,16839.0,16838.0,0.01071256]
[1672888383927,0.06492746,16839.0,16838.0,0.01071256]
[1672888384143,0.66632746,16839.0,16838.0,0.01071256]
[1672888389509,0.66632746,16839.0,16838.0,0.01062973]
[1672888392657,0.36562746,16839.0,16838.0,0.01062973]
[1672888395816,0.06492746,16839.0,16838.0,0.01062973]
[1672888396131,0.66632746,16839.0,16838.0,0.01062973]
[1672888396342,0.06492746,16839.0,16838.0,0.01062973]
[1672888396759,0.66632746,16839.0,16838.0,0.01062973]
[1672888400760,0.66632746,16839.0,16838.0,0.61062973]
[1672888404750,0.06492746,16839.0,16838.0,0.61062973]
[1672888405372,0.66632746,16839.0,16838.0,0.61062973]
[1672888409917,0.06492746,16839.0,16838.0,0.61062973]
[1672888410114,0.36562746,16839.0,16838.0,0.61062973]
[1672888415805,0.06492746,16839.0,16838.0,0.61062973]
[1672888416220,0.36562746,16839.0,16838.0,0.61062973]
[1672888417584,0.31562746,16839.0,16838.0,0.61062973]
[1672888433661,0.01492746,16839.0,16838.0,0.61062973]
[1672888433979,0.31562746,16839.0,16838.0,0.61062973]
[1672888439119,0.31562746,16839.0,16838.0,0.61041417]
[1672888443005,0.01492746,16839.0,16838.0,0.61041417]
[1672888443323,0.31562746,16839.0,16838.0,0.61041417]
[1672888449848,0.01492746,16839.0,16838.0,0.61041417]
[1672888464470,0.01492746,16839.0,16838.0,0.69930034]
[1672888465405,0.01492746,16839.0,16838.0,0.61041417]
[1672888465611,0.01492746,16839.0,16838.0,0.69930034]
[1672888465827,0.01492746,16839.0,16838.0,1.29300034]
[1672888466573,0.01492746,16839.0,16838.0,1.20411417]
[1672888467939,0.01492746,16839.0,16838.0,1.50481417]
[1672888468571,0.01492746,16839.0,16838.0,1.29300034]
[1672888468783,0.01492746,16839.0,16838.0,1.59370034]
[1672888471719,0.01492746,16839.0,16838.0,1.50481417]
[1672888476873,0.01492746,16839.0,16838.0,1.59370034]
[1672888478559,0.01492746,16839.0,16838.0,1.29300034]
[1672888478773,0.3507,16842.0,16839.0,0.05]
[1672888479606,0.3507,16842.0,16839.0,0.0492]
[1672888479810,0.3557,16842.0,16839.0,0.0522]
[1672888481717,0.3557,16842.0,16839.0,0.0137]
[1672888484661,0.3007,16841.0,16839.0,0.0137]
[1672888485701,0.055,16842.0,16839.0,0.0137]
[1672888485918,0.3007,16841.0,16839.0,0.9081]
[1672888486133,0.3087,16841.0,16840.0,0.05]
[1672888486654,0.3007,16841.0,16840.0,0.05]
[1672888487281,0.3057,16841.0,16840.0,0.053]
[1672888489081,0.005,16841.0,16840.0,0.74188617]
[1672888489295,0.005,16841.0,16840.0,1.33558617]
[1672888491491,0.00283456,16841.0,16840.0,1.46912202]
[1672888491913,0.00283456,16841.0,16840.0,1.38023585]
[1672888492123,0.00283456,16841.0,16840.0,1.4691461]
[1672888493589,0.00283456,16841.0,16840.0,1.38023585]
[1672888493809,0.00283456,16841.0,16840.0,1.91601735]
[1672888494126,0.00283456,16841.0,16840.0,1.5580307]
[1672888494337,0.00283456,16841.0,16840.0,1.46883802]
[1672888494955,0.00283456,16841.0,16840.0,1.37998289]
[1672888495178,0.00283456,16841.0,16840.0,1.46883705]